Cogmind - Beta 11.1 @@@ ROGUE MODE // 2022.06.14 @ 15:23:57 Player: ChromeKnight Result: Self-destructed Performance ------------- Evolutions (1) 500 Regions Visited (3) 600 Robots Destroyed (55) 275 Value Destroyed (1303) 1303 Prototype IDs (1) 20 Alien Tech Used (0) 0 Bonus (-45) -45 TOTAL SCORE: 2653 Bonus ------- Follower Combat Kills 50 Friendly Fire -95 Cogmind --------- Core Integrity 222/400 Matter 300/300 Energy 280/280 System Corruption 0% Temperature Cool (0) Movement Treading (160) Location -9/Materials Parts ------- > --- POWER (1) -------- Cooled Ion Engine > --- PROPULSION (2) --- Light Treads Light Treads > --- UTILITY (4) ------ Heat Sink Large Storage Unit Targeting Computer Light Armor Plating > --- WEAPON (2) ------- Heavy Assault Rifle Plasma Cutter > --- INVENTORY (15) --- Light Treads Flight Unit Flight Unit Flight Unit Light Armor Plating Light Armor Plating Hacking Suite Hacking Suite Heavy Assault Rifle Improved Light Cannon Rocket Launcher Datajack Datajack Plasma Flamer Peak State ------------ > --- POWER ------------ Cooled Ion Engine > --- PROPULSION ------- Light Treads Light Treads > --- UTILITY ---------- Heat Sink Heat Sink Large Storage Unit Medium Armor Plating > --- WEAPON ----------- Spread Laser Improved Light Cannon > --- INVENTORY -------- Ion Engine Flight Unit Flight Unit Flight Unit Hacking Suite Medium Laser Small Laser Heavy Assault Rifle Heavy Assault Rifle Datajack Plasma Cutter Plasma Flamer [Rating: 16] Favorites ----------- Power Cooled Ion Engine Engine Cooled Ion Engine Propulsion Light Treads Treads Light Treads Utility Large Storage Unit Device Heat Sink Storage Large Storage Unit Processor Targeting Computer Protection Medium Armor Plating Weapon Improved Light Cannon Energy Gun Small Laser Ballistic Gun Heavy Assault Rifle Ballistic Cannon Improved Light Cannon Launcher Grenade Launcher Special Weapon Plasma Cutter Build | -11 -10 -10 -9 ------- Run | Scr Mat Min Mat Slots Evolved 2 | . . . 2 Power . | . . . . Propulsion . | . . . . Utility 2 | . . . 2 Weapon . | . . . . Parts Attached 33 | 6 5 7 15 Power 5 | 1 1 1 2 Engine 5 | 1 1 1 2 Core . | . . . . Reactor . | . . . . Propulsion 6 | 2 . 1 3 Treads 6 | 2 . 1 3 Leg . | . . . . Wheel . | . . . . Hover . | . . . . Flight . | . . . . Utility 10 | 1 2 1 6 Device 4 | . 1 1 2 Storage 2 | 1 1 . . Processor 1 | . . . 1 Hackware . | . . . . Protection 3 | . . . 3 Artifact . | . . . . Weapon 12 | 2 2 4 4 Energy Gun 6 | 2 1 2 1 Energy Cannon . | . . . . Ballistic Gun 2 | . . 1 1 Ballistic Cannon 1 | . . . 1 Launcher 2 | . 1 1 . Special Weapon 1 | . . . 1 Impact Weapon . | . . . . Slashing Weapon . | . . . . Piercing Weapon . | . . . . Special Melee Weapon . | . . . . Unidentified Prototypes 1 | . . . 1 Parts Lost 9 | . 3 3 3 Power 1 | . 1 . . Propulsion 1 | . . 1 . Utility 3 | . . 1 2 Weapon 4 | . 2 1 1 Highest Loss Streak 1 | . 1 1 1 To Critical Strikes . | . . . . Average Slot Usage (%) 90 | . 88 93 89 Engine 11 | . 8 14 11 Treads 24 | . 28 27 22 Device 12 | . 10 13 12 Storage 12 | . 14 14 11 Processor 1 | . . . 2 Protection 5 | . . . 9 Energy Gun 16 | . 25 21 12 Ballistic Cannon 4 | . . . 8 Naked Turns . | . . . . Heaviest Build 44 | 14 30 30 44 Greatest Support 40 | 40 40 40 40 Greatest Overweight (x) 1 | . . . 1 Average Overweight (x) . | . . . . Largest Inventory Capacity 15 | 8 15 15 15 Average Capacity 14 | 6 9 15 15 Most Carried 15 | 1 8 9 15 Average Carried 9 | . 6 8 11 Final Capacity 15 | 8 15 15 15 Final Carried 14 | 1 7 8 14 Class Distribution -------------------- 57% | Mutant 42% | Scavenger-Mutant Dominant Class ---------------- Mutant | -10/Materials Scavenger-Mutant | -10/Mines Mutant | -9/Materials Resources | -11 -10 -10 -9 ----------- Run | Scr Mat Min Mat Matter Collected 834 | 229 76 130 399 Remotely . | . . . . Salvage Created 1398 | . 545 166 687 Parts 93 | . 35 12 46 Haulers Intercepted 2 | . 2 . . Recyclers Shooed 3 | . . . 3 Parts Field Recycled . | . . . . Retrieved Matter . | . . . . Parts Self-Destructed . | . . . . Prevented . | . . . . Kills | -11 -10 -10 -9 ------- Run | Scr Mat Min Mat Combat Hostiles Destroyed 37 | . 11 7 19 Guns 21 | . 7 5 9 Cannons 9 | . . . 9 AOE 7 | . 4 2 1 Classes Destroyed 10 | . 7 . 3 Worker 6 | . 1 . 5 Tunneler 1 | . 1 . . Hauler 2 | . 2 . . Recycler 1 | . . . 1 Operator 3 | . 2 . 1 Watcher 5 | . 2 . 3 Swarmer 11 | . 6 3 2 Grunt 19 | . 5 4 10 Duelist 1 | . . . 1 Sentry 6 | . . . 6 Best Kill Streak 5 | . 5 3 4 Combat Bots Only 3 | . 3 3 3 Max Kills in Single Turn 2 | . 2 2 2 Gunslinging 1 | . 1 . . Exploded 2 | . 2 2 1 Melee . | . . . . Uniques/NPCs Destroyed . | . . . . Combat | -11 -10 -10 -9 -------- Run | Scr Mat Min Mat Damage Taken 1761 | . 430 310 1021 Core 291 | . 74 39 178 Absorbed by Shields . | . . . . Core Remaining (%) 77 | 100 . 54 . Volleys Fired 130 | . 35 19 76 Largest 2 | . 2 2 2 Hottest 105 | . 90 105 105 Shots Fired 246 | . 66 38 142 Gun 173 | . 63 35 75 Cannon 66 | . . . 66 Launcher 6 | . 3 3 . Special 1 | . . . 1 Kinetic 76 | . . 10 66 Thermal 113 | . 12 25 76 Explosive 6 | . 3 3 . Electromagnetic 51 | . 51 . . Robot Hit Streak 15 | . 15 8 13 Robot Miss Streak 8 | . 3 2 8 Penetration Max . | . . . . Secondary Targets 3 | . 2 1 . Max Gunslinging Chain 1 | . 1 1 . Shots Hit Robots 178 | . 38 26 114 Core Hits 125 | . 24 13 88 Critical Kills . | . . . . Critical Parts Destroyed 1 | . . 1 . Critical Strikes 5 | . 1 1 3 Burn 1 | . 1 . . Destroy 1 | . . 1 . Blast 3 | . . . 3 Melee Attacks . | . . . . Impact . | . . . . Slashing . | . . . . Piercing . | . . . . Sneak Attacks . | . . . . Combat Hostiles . | . . . . Follow-up Attacks . | . . . . Damage Inflicted 3394 | . 707 487 2200 Guns 1695 | . 487 295 913 Cannons 987 | . . . 987 Explosions 701 | . 220 192 289 Melee . | . . . . Ramming . | . . . . Kinetic 1053 | . . 66 987 Thermal 1651 | . 209 229 1213 Explosive 278 | . 86 192 . Electromagnetic 412 | . 412 . . Impact . | . . . . Slashing . | . . . . Piercing . | . . . . Highest Corruption . | . . . . Average Corruption . | . . . . Corruption Purged . | . . . . Corruption Blocked . | . . . . Overload Shots . | . . . . Overflow Damage 69 | . 14 . 55 Projectiles 21 | . . . 21 Explosions 48 | . 14 . 34 Melee . | . . . . Knockbacks 11 | . . . 11 Impact . | . . . . Kinetic 10 | . . . 10 Secondary 1 | . . . 1 Self-Inflicted Damage 153 | . 93 21 39 Shots 5 | . 3 1 1 Rammed . | . . . . Targets Rammed . | . . . . Kicked . | . . . . Crushed . | . . . . Highest Temperature 270 | . 220 247 270 Average Temperature 58 | . 64 84 42 Received Heat Transfer 624 | . 102 108 414 Siege Activations . | . . . . Robots Corrupted 1 | . 1 . . Combat Hostiles . | . . . . Parts Fried 6 | . 5 . 1 Impact Corruptions 1 | . . . 1 Robots Melted . | . . . . Combat Hostiles . | . . . . Parts Melted 5 | . . 2 3 Heat Transferred 2587 | . 396 605 1586 Parts Sabotaged . | . . . . Parts Stolen . | . . . . Parts Stripped . | . . . . Power Chain Reactions 3 | . 3 . . Missiles Intercepted . | . . . . Alert | -11 -10 -10 -9 ------- Run | Scr Mat Min Mat Peak Influence 358 | . 281 212 358 Initial 109 | . . 109 23 Average 109 | . 134 102 110 Maximum Alert Level 1 | . 1 1 1 Low Security (%) 74 | 100 72 66 79 Level 1 25 | . 27 33 20 Level 2 . | . . . . Level 3 . | . . . . Level 4 . | . . . . Level 5 . | . . . . High Security . | . . . . Max Security . | . . . . Squads Dispatched 4 | . 2 . 2 Investigation 1 | . . . 1 Extermination . | . . . . Reinforcement 3 | . 2 . 1 Assault . | . . . . Garrison . | . . . . Intercept . | . . . . Searches Triggered . | . . . . Construction Impeded . | . . . . Haulers Reinforced . | . . . . Active Scanning Responses . | . . . . Cargo Convoy Interrupts . | . . . . Stealth | -11 -10 -10 -9 --------- Run | Scr Mat Min Mat Distress Signals 7 | . 2 . 5 Communications Jammed . | . . . . Distress Signals . | . . . . Times Spotted 56 | . 17 7 32 Peak Tracking Total 4 | . 4 3 4 Tactical Retreats 4 | . 1 . 3 Traps | -11 -10 -10 -9 ------- Run | Scr Mat Min Mat Traps Triggered 2 | . . . 2 Indirectly . | . . . . Trap Hack Attempts . | . . . . Triggered . | . . . . Disarmed . | . . . . Reprogrammed . | . . . . Reused . | . . . . Traps Extracted . | . . . . Installed . | . . . . Triggered 1 | . 1 . . Machines | -11 -10 -10 -9 ---------- Run | Scr Mat Min Mat Machines Disabled 4 | . 2 1 1 Max in Single Turn 2 | . 2 1 1 Machines Sabotaged . | . . . . Garrisons Compromised . | . . . . Overloaded Fab Kills . | . . . . Hacking | -11 -10 -10 -9 --------- Run | Scr Mat Min Mat Machines Accessed 9 | . 2 . 7 Terminals 8 | . 2 . 6 Fabricators . | . . . . Repair Stations . | . . . . Recycling Units . | . . . . Scanalyzers 1 | . . . 1 Garrison Access . | . . . . Total Hacks 26 | . 4 . 22 Successful 15 | . 3 . 12 Failed 11 | . 1 . 10 Catastrophic . | . . . . Database Lockouts . | . . . . Manual 18 | . 4 . 14 Terminals 20 | . 4 . 16 Fabricators . | . . . . Repair Stations . | . . . . Recycling Units . | . . . . Scanalyzers 6 | . . . 6 Garrison Access . | . . . . Terminal Hacks 2 | . . . 2 Robot Analysis 1 | . . . 1 Branch Access Points 1 | . . . 1 Fabricator Hacks . | . . . . Repair Station Hacks . | . . . . Recycling Unit Hacks . | . . . . Scanalyzer 4 | . . . 4 Insert Component 2 | . . . 2 Analyze 2 | . . . 2 Garrison Access Hacks . | . . . . Unauthorized Hacks 9 | . 3 . 6 Terminals 9 | . 3 . 6 Botnet 7 | . 2 . 5 Operators 2 | . 1 . 1 Fabricators . | . . . . Repair Stations . | . . . . Recycling Units . | . . . . Scanalyzers . | . . . . Garrison Access . | . . . . Data Cores Recovered . | . . . . Used . | . . . . Hacking Detections 9 | . 2 . 7 Full Trace Events 1 | . . . 1 Feedback Events . | . . . . Feedback Blocked . | . . . . Robot Schematics Acquired . | . . . . Robots Built . | . . . . Authchips . | . . . . Time . | . . . . Total Robot Build Rating . | . . . . Part Schematics Acquired 2 | . . . 2 Parts Built . | . . . . Authchips . | . . . . Time . | . . . . Total Part Build Rating . | . . . . Parts Repaired . | . . . . Time . | . . . . Parts Recycled . | . . . . Recycled Matter . | . . . . Retrieved Matter . | . . . . Retrieved Components . | . . . . Parts Scanalyzed 2 | . . . 2 Part Schematics Acquired 2 | . . . 2 Parts Damaged . | . . . . Bothacking | -11 -10 -10 -9 ------------ Run | Scr Mat Min Mat Used RIF Installer . | . . . . Robots Hacked . | . . . . Non-combat . | . . . . Combat . | . . . . Robot Hacks Applied . | . . . . Relay Couplers Released . | . . . . Fabnet Peak Effective % . | . . . . Robots Rewired . | . . . . Allies Hacked . | . . . . Hacks Repelled . | . . . . Allies | -11 -10 -10 -9 -------- Run | Scr Mat Min Mat Total Allies 4 | . . 4 . Largest Group 4 | . . 4 4 Highest-Rated Group 71 | . . 71 71 Highest-Rated Ally 31 | . . 31 31 Total Orders 9 | . . . 9 STAY 6 | . . . 6 FOLLOW 3 | . . . 3 Ally Attacks 10 | . . . 10 Total Damage 169 | . . . 169 Kills 2 | . . . 2 Allies Corrupted . | . . . . Allies Melted . | . . . . Intel | -11 -10 -10 -9 ------- Run | Scr Mat Min Mat Robot Analysis Total 1 | . . . 1 Derelict Logs Recovered 2 | . . 2 . Drone Launches . | . . . . Drone Recoveries . | . . . . Exploration | -11 -10 -10 -9 ------------- Run | Scr Mat Min Mat Turns Passed 4026 | 75 599 1173 2179 Spaces Moved 1654 | 44 216 685 709 Core 4 | 4 . . . Treads 1650 | 40 216 685 709 Legs . | . . . . Wheels . | . . . . Hover . | . . . . Flight . | . . . . Fastest Speed 50 | 50 160 160 160 Average Speed 174 | 150 160 160 194 Slowest Speed 240 | 160 160 160 240 Overloaded Moves . | . . . . Propulsion Burnouts . | . . . . Robots Hopped . | . . . . Cave-ins Triggered . | . . . . Exploration Rate (%) 50 | 4 43 94 59 Regions Visited 3 Branch Regions 1 Pre-discovered Areas 1 | . . 1 . Known Exits Taken . | . . . . Unknown Exits Taken 3 | 1 1 1 . Scrap Searched 3 | . . 3 . Spaces Dug . | . . . . Terrain Destroyed 83 | . 57 17 9 Melee . | . . . . Projectile 2 | . . . 2 AOE 81 | . 57 17 7 Terrain Rammed . | . . . . Walls Destroyed . | . . . . Machines Disabled . | . . . . Actions | -11 -10 -10 -9 --------- Run | Scr Mat Min Mat Total 2545 | 50 405 725 1365 Wait 694 | . 137 12 545 Move 1651 | 43 215 684 709 Hop . | . . . . Pick Up 21 | 1 9 2 9 Fast Attach 16 | 6 2 2 6 Attach 6 | . 2 3 1 Detach 1 | . 1 . . Swap 11 | . 1 2 8 Drop 15 | . 3 1 11 Fire 130 | . 35 19 76 Melee . | . . . . Ram . | . . . . Kick . | . . . . Crush . | . . . . Escape Stasis . | . . . . Rewire . | . . . . Trap . | . . . . Miscellaneous . | . . . . Route ------- -11/Scrapyard -10/Materials -10/Mines (discovered 3 exits: *Mat x2 / [*Exi]) -9/Materials (discovered 4 exits: *Mat x2 / *Min x2) History --------- Turn | Location | Event 2 | -11/Scrapyard | Discovered new exit (range 16) 76 | -11/Scrapyard | Entered Materials 292 | -10/Materials | Discovered new exit (range 9) 314 | -10/Materials | Build established: Mutant 675 | -10/Materials | Entered Mines 758 | -10/Mines | Met a Derelict bent on vengeance 815 | -10/Mines | Discovered new exit (range 7) 914 | -10/Mines | A weapon hastily lodged in a ceiling crevice suddenly fell to the ground 936 | -10/Mines | Deemed a non-threat by the Exiles lab entrance 936 | -10/Mines | Discovered new exit (range 5) 1098 | -10/Mines | Learned location of Mines (-9) 1440 | -10/Mines | Learned location of 1 exit from Materials 1458 | -10/Mines | Discovered new exit (range 8) 1487 | -10/Mines | Build established: Scavenger-Mutant 1624 | -10/Mines | Escorted by a lone wolf Derelict 1767 | -10/Mines | Assisted by bots powering up and referring to "LRC-V3" 1848 | -10/Mines | Entered Materials 1848 | -9/Materials | Accompanied by 4 allies 1848 | -9/Materials | Evolved 2 slots: Utility x2 1849 | -9/Materials | Identified exit to Materials 2420 | -9/Materials | Discovered new exit (range 15) 2996 | -9/Materials | Build established: Mutant 3640 | -9/Materials | Discovered exit to Materials (range 4) 4012 | -9/Materials | Identified exit to Mines 4027 | -9/Materials | Self-destructed Last Messages --------------- >>Trojan(Botnet) Trojan loaded successfully. Testing... Terminal linked with 4 systems. Awaiting botnet instructions. >>Analysis(P-60 Hacker) Downloading analysis... P-60 Hacker Tier: 4 P-series programmers are the primary means of asserting control over areas of unwanted derelict activity. As they are often dispatched to combat environments, programmers are equipped with both electromagnetic weaponry and dedicated target analysis components enabling them to quickly incapacitate hostiles. 04012_ Connecting with Terminal... >>Access(Branch) Found 2 branch access points: (86,9) Mines (13,13) Mines Map updated. Map ----- +----------------------------------------------------+ | | | | | | | | | | | | | | | | | | | ????????????????????????????????????????????? | | ????????????????????????????????????????????? | | ????????????????????????????????????????????? | | ????????????????????????????????????????????? | | ???##########???????????????????????????????? | | ???# ###############?????????????????? | | ???# +[=* = #?????????????????? | | ???# """ ############# #?????????????????? | | #### """""#???# T # #?????????????????? | | # """""#???# + #????>???#????????? | | # """""#???# ! # #?????? #????????? | | + """ #???######### #????? #????????? | | # #??### ###### #???? #?????????? | | # #??# # #??? #??????????? | | +############??# """ # #### #??????????? | | #?????????# """ # ^ +??????????? | | #?????????# """ r /@ #??????????? | | #?????????# #%^ "" #??????????? | | #?????????# " " # """ #??????????? | | ! #?????????# "T" # """ #??????????? | | !! #?????????# """ # """ +??????????? | | #?????????# # #??????????? | | #? ????###+######## #??????????? | | ###+##? """??# ##### #####??????????? | | #?# #??""""" # #??????????????? | | #?# #??""""" + % #??????????????? | | ### #??""""" # #??????????????? | | #?? """??# ! %%##### #??????????????? | | ### #?? ????## = ##???###+###??????????????? | | #?# ###########% #??????? ???????????????? | | #?# %#???????? "??????????????? | | ??## % #????????? ""?????????????? | | ???# """% ##?????????T"#????????????? | | ?# % """ #??????????"#????????????? | | " # ]! """ #### "???????????????????? | | " + !% """ + "???????????????????? | | " # % ###??????????????????????? | | # #????????????????????????? | | ???###########%% #????????????????????????? | | ??????########% #????????????????????????? | | ??????# %%= %% #????????????????????????? | +----------------------------------------------------+ Best States ------------- Heat Dissipation 48 Energy Generation 14 Energy Capacity 280 Matter Stores 300 Matter Capacity 300 Sight Range 16 Robot Scan Range 14 Terrain Scan Density 10 Armor Coverage 225 Evasion (%) 40 Targeting Accuracy 5 Recoil Reduction 2 Item Schematics ----------------- Hacking Suite | -9/Materials | Scanalyzed Plasma Flamer | -9/Materials | Scanalyzed Robot Schematics ------------------ None Fabricated ------------ Nothing Alien Tech Used ----------------- None Achievements -------------- None Challenges ------------ None Game ------ Seed ExplosiveGlidesysPit Manual? 0 Play Time 00:15:56 Cumulative 331.2 hours Start 2022.06.14 @ 15:07:27 End 2022.06.14 @ 15:23:57 Sessions 1 Manual Loads 0 Difficulty Rogue Special Mode None Game No. 589 Rogue 434 Adventurer 148 Explorer 7 Win Type - Total 11 Types 9/0/1/1/0/0/0/0/0 Lore% 74 Gallery% 87 Achievement% 67 Wizard Run 0 Options --------- ASCII 0 Keyboard 0 Movement Numpad Keybinds 0 Fullscreen 1 Font 18/SmallcapsGlow Map View 76x50 Tactical HUD 1 Map Filters NONE Filters NONE Steam 1 RUN: d91be732-1115-4ac5-b4e2-8b0454e8e16e